Cogmind - Beta 15 @@@ ROGUE MODE // 2025.08.22 @ 23:25:28 Player: Naughtyusername Result: Destroyed by P-60 Hacker with Shock Rifle Performance ------------- Evolutions (3) 1500 Regions Visited (7) 1400 Robots Destroyed (138) 690 Value Destroyed (3785) 3785 Prototype IDs (8) 160 Alien Tech Used (0) 0 Bonus (28) 28 TOTAL SCORE: 7563 Bonus ------- High Alert Combat Kills 28 Cogmind --------- Core Integrity 0/700 Matter 295/300 Energy 100/100 System Corruption 16% Temperature Cool (0) Movement Core (50) Location -7/Lower Caves Parts ------- > --- POWER (1) -------- (None) > --- PROPULSION (4) --- (None) > --- UTILITY (5) ------ Improved Signal Interpreter Improved Melee Analysis Suite Core Analyzer > --- WEAPON (3) ------- Chainsword > --- INVENTORY (5) ---- Improved Sensor Array Hardened Light Armor Plating System Shield Rocket Launcher Mace Peak State ------------ > --- POWER ------------ Light Nuclear Core > --- PROPULSION ------- Aluminum Leg Improved Carbon-fiber Leg Improved Titanium Leg Improved Titanium Leg > --- UTILITY ---------- Large Storage Unit Improved Signal Interpreter Improved Melee Analysis Suite Core Analyzer Hacking Suite > --- WEAPON ----------- Katana Greatsword > --- INVENTORY -------- Light Nuclear Core Light Nuclear Core Improved Sensor Array Melee Analysis Suite Advanced ECM Suite Hardened Light Armor Plating Medium Reactive Plating Powered Armor Hacking Suite System Shield System Restoration Module Rocket Launcher Rocket Launcher Plasma Cutter Spear [Rating: 46] Favorites ----------- Power Reinforced Ion Engine Engine Reinforced Ion Engine Power Core Light Nuclear Core Propulsion Aluminum Leg Leg Aluminum Leg Wheel Wheel Flight Unit VTOL Module Utility Large Storage Unit Device Improved Sensor Array Storage Large Storage Unit Processor Improved Signal Interpreter Hackware Hacking Suite Protection Hardened Medium Armor Plating Weapon Flail Energy Gun Medium Laser Ballistic Gun Assault Rifle Ballistic Cannon Improved Light Cannon Launcher Rocket Launcher Special Weapon Plasma Cutter Impact Weapon Flail Slashing Weapon Katana Piercing Weapon Spear Build | -11 -10 -10 -9 -8 -7 -7 -7 ------- Run | Yrd Mat Min Mat Mat Fac Low Low Slots Evolved 6 | . . . 2 2 2 . . Power . | . . . . . . . . Propulsion 2 | . . . 1 . 1 . . Utility 3 | . . . 1 1 1 . . Weapon 1 | . . . . 1 . . . Parts Attached 98 | 8 20 1 15 21 29 2 2 Power 10 | 1 2 . 1 3 3 . . Engine 7 | 1 2 . 1 2 1 . . Core 3 | . . . . 1 2 . . Reactor . | . . . . . . . . Propulsion 36 | 2 6 . 7 8 12 . 1 Treads . | . . . . . . . . Leg 30 | 2 6 . 7 8 7 . . Wheel 4 | . . . . . 4 . . Hover . | . . . . . . . . Flight 2 | . . . . . 1 . 1 Utility 28 | 2 6 . 5 8 6 . 1 Device 5 | 1 2 . . 2 . . . Storage 5 | 1 1 . 1 1 1 . . Processor 6 | . 1 . . 2 2 . 1 Hackware 4 | . 1 . 1 . 2 . . Protection 8 | . 1 . 3 3 1 . . Artifact . | . . . . . . . . Weapon 24 | 3 6 1 2 2 8 2 . Energy Gun 3 | 3 . . . . . . . Energy Cannon . | . . . . . . . . Ballistic Gun 2 | . 2 . . . . . . Ballistic Cannon 2 | . 2 . . . . . . Launcher 1 | . . . . . 1 . . Special Weapon 1 | . . . . . . 1 . Impact Weapon 9 | . 2 . 2 2 2 1 . Slashing Weapon 4 | . . 1 . . 3 . . Piercing Weapon 2 | . . . . . 2 . . Special Melee Weapon . | . . . . . . . . Unidentified Prototypes . | . . . . . . . . Corrupted Parts 2 | . . . . 2 . . . System Corruption 8 | . . . . 8 . . . Parts Lost 51 | . 6 . 11 12 16 1 5 Power 6 | . 1 . . 2 2 . 1 Propulsion 26 | . 2 . 5 7 8 1 3 Utility 10 | . 1 . 4 2 2 . 1 Weapon 9 | . 2 . 2 1 4 . . Highest Loss Streak 6 | . 2 . 2 4 6 1 5 To Critical Strikes . | . . . . . . . . Average Backups 12 | 2 9 15 14 12 14 12 11 Power 1 | . 1 2 2 1 . . . Propulsion 2 | . 3 6 4 2 . . . Utility 6 | . 3 3 2 7 9 9 6 Weapon 2 | . 1 4 4 2 2 2 3 Tool/Special . | . . . . . . . . Unused Backups 24 | . 2 . 2 4 6 . 10 Power 3 | . 1 . . 1 1 . . Propulsion 1 | . . . . 1 . . . Utility 14 | . . . . 2 5 . 7 Weapon 6 | . 1 . 2 . . . 3 Tool/Special . | . . . . . . . . Average Slot Usage (%) 93 | . 98 100 93 97 88 82 65 Engine 7 | . 13 14 11 5 . 6 4 Core 1 | . . . . 2 2 . . Leg 26 | . 27 28 32 26 26 7 3 Wheel 1 | . . . . . 1 11 3 Device 2 | . 8 . . 1 . 6 4 Storage 9 | . 14 14 11 9 7 7 3 Processor 8 | . . . . 8 16 23 25 Hackware 8 | . 3 14 10 9 10 . . Protection 3 | . 1 . 5 7 1 . . Energy Gun 2 | . 15 . . . . . . Ballistic Gun 1 | . 6 . . . . . . Impact Weapon 13 | . 4 16 16 27 5 9 10 Slashing Weapon 5 | . . 11 5 . 10 7 7 Peak Build Rating 46 | 7 14 16 21 31 46 38 38 Average Rating 24 | 5 9 15 17 25 38 36 30 On Entrance 19 | . 7 14 16 17 23 38 38 Naked Turns . | . . . . . . . . Heaviest Build 54 | 14 38 34 54 41 46 39 39 Greatest Support 68 | 20 20 20 30 38 68 30 20 Greatest Overweight (x) 9 | 2 9 1 1 2 2 3 3 Average Overweight (x) . | . . 1 . . . 1 1 Largest Inventory Capacity 15 | 8 15 15 15 15 15 15 15 Average Capacity 14 | 7 12 15 15 15 15 15 11 Most Carried 15 | 4 15 15 15 15 15 15 15 Average Carried 12 | 2 9 15 14 13 14 12 10 Final Capacity 15 | 8 15 15 15 15 15 15 5 Final Carried 15 | 4 15 15 14 13 13 15 5 Class Distribution -------------------- 43% | Mutant 25% | Scavenger-Mutant 12% | Gladiator 9% | Scavenger-Gladiator 8% | Hacker-Gladiator Dominant Class ---------------- Mutant | -10/Materials Mutant | -10/Mines Scavenger-Mutant | -9/Materials Mutant | -8/Materials Scavenger-Gladiator | -7/Factory Gladiator | -7/Lower Caves Gladiator | -7/Lower Caves Resources | -11 -10 -10 -9 -8 -7 -7 -7 ----------- Run | Yrd Mat Min Mat Mat Fac Low Low Matter Collected 1823 | 280 343 . 235 283 605 77 . Remotely . | . . . . . . . . Salvage Created 5057 | 130 811 21 1096 1410 1388 174 27 Parts 223 | 9 47 . 43 49 70 4 1 Haulers Intercepted 10 | . 2 . 2 4 2 . . Recyclers Shooed 5 | 1 2 . . 1 1 . . Parts Field Recycled . | . . . . . . . . Retrieved Matter . | . . . . . . . . Parts Self-Destructed 1 | . . . . . . . 1 Prevented . | . . . . . . . . Kills | -11 -10 -10 -9 -8 -7 -7 -7 ------- Run | Yrd Mat Min Mat Mat Fac Low Low Combat Hostiles Destroyed 93 | . 16 . 24 29 22 1 1 Melee 50 | . . . 14 19 15 1 1 Guns 16 | . 16 . . . . . . AOE 7 | . . . . . 7 . . Classes Destroyed 14 | 2 6 . 3 1 1 1 . Worker 15 | . 2 . 2 5 6 . . Builder 4 | . . . 1 2 1 . . Tunneler 3 | 2 . 1 . . . . . Hauler 10 | . 2 . 2 4 2 . . Recycler 7 | 1 2 . . . 4 . . Operator 3 | . 1 . 1 1 . . . Watcher 3 | . 1 . 1 . 1 . . Swarmer 22 | . 6 . 2 7 6 . 1 Grunt 45 | . 10 . 13 14 8 . . Brawler 2 | . . . 1 1 . . . Sentry 16 | . . . 8 6 2 . . Hunter 1 | . . . . 1 . . . Programmer 7 | . . . . . 6 1 . Decomposer 1 | . . . . . . 1 . Samaritan 1 | . . . . . . 1 . Best Kill Streak 7 | 3 6 1 2 7 7 1 1 Combat Bots Only 6 | . 5 . 2 6 6 1 1 Max Kills in Single Turn 2 | 1 1 1 1 1 2 1 1 Gunslinging . | . . . . . . . . Exploded 2 | . . . . . 2 . . Melee 2 | . . . 1 1 2 1 1 Uniques/NPCs Destroyed . | . . . . . . . . Combat | -11 -10 -10 -9 -8 -7 -7 -7 -------- Run | Yrd Mat Min Mat Mat Fac Low Low Hostile Shots Fired 707 | . 94 . 170 187 211 12 33 Missed 198 | . 28 . 42 46 69 4 9 Hits 509 | . 66 . 128 141 142 8 24 Melee 4 | . . . 3 . . 1 . Projectile 505 | . 66 . 125 141 142 7 24 Critical Strikes 20 | . 1 . 8 4 5 . 2 Actively Blocked 2 | . . . 2 . . . . Part Disruptions 1 | . . . . . 1 . . Damage Taken 7044 | . 672 . 1712 1938 2205 104 413 Core 1316 | . 52 . 285 268 512 . 199 Absorbed by Shields . | . . . . . . . . Redirected to Shielding 116 | . . . 116 . . . . Core Remaining (%) 64 | 100 . 79 28 51 . . . Volleys Fired 97 | 8 69 . . . 18 2 . Largest 2 | 2 2 . . . 1 1 . Hottest 90 | 90 90 . . . 33 20 . Shots Fired 173 | 16 137 . . . 18 2 . Gun 153 | 16 137 . . . . . . Cannon . | . . . . . . . . Launcher 18 | . . . . . 18 . . Special 2 | . . . . . . 2 . Kinetic 35 | . 35 . . . . . . Thermal 118 | 14 102 . . . . 2 . Explosive 18 | . . . . . 18 . . Electromagnetic 2 | 2 . . . . . . . Robot Hit Streak 9 | 6 9 . . . 3 . . Robot Miss Streak 5 | 2 5 . . . 4 . . Penetration Max . | . . . . . . . . Secondary Targets 1 | . 1 . . . . . . Max Gunslinging Chain 1 | . 1 . . . . . . Shots Hit Robots 367 | 11 83 2 80 108 72 8 3 Core Hits 131 | 4 38 . 17 20 47 3 2 Critical Kills 7 | . . . 4 2 1 . . Critical Parts Destroyed 33 | . 1 . 11 19 1 1 . Critical Strikes 52 | . 3 . 16 21 11 1 . Burn 2 | . 2 . . . . . . Smash 41 | . 1 . 16 21 2 1 . Sever 6 | . . . . . 6 . . Impale 3 | . . . . . 3 . . Melee Attacks 428 | . 1 2 126 175 100 18 6 Impact 310 | . 1 1 116 175 11 5 1 Slashing 89 | . . 1 10 . 60 13 5 Piercing 29 | . . . . . 29 . . Sneak Attacks 42 | . 1 2 9 15 13 2 . Combat Hostiles . | . . . . . . . . Follow-up Attacks 72 | . . . 17 40 14 . 1 Damage Inflicted 12743 | 133 1144 145 3196 3953 3634 424 114 Guns 1179 | 133 1046 . . . . . . Cannons . | . . . . . . . . Explosions 911 | . . . . . 911 . . Melee 10653 | . 98 145 3196 3953 2723 424 114 Ramming . | . . . . . . . . Kinetic 232 | . 232 . . . . . . Thermal 935 | 121 814 . . . . . . Explosive 911 | . . . . . 911 . . Electromagnetic 12 | 12 . . . . . . . Impact 7287 | . 98 72 2842 3953 183 139 . Slashing 2572 | . . 73 354 . 1746 285 114 Piercing 794 | . . . . . 794 . . Highest Corruption 16 | . . . 1 8 16 16 16 Average Corruption 8 | . . . 1 7 7 16 16 Corruption Purged . | . . . . . . . . Corruption Blocked . | . . . . . . . . Effects 79 | . . . 6 11 36 24 2 Message Errors 19 | . . . 1 3 7 7 1 Matter Fused 19 | . . . . 2 12 5 . Heat Flow Errors 13 | . . . 1 2 7 3 . Energy Discharges 6 | . . . 2 2 . 1 1 Parts Rejected 2 | . . . 1 . . 1 . Data Loss (minor) 10 | . . . 1 1 5 3 . Data Loss (major) 5 | . . . . 1 1 3 . Alerts 3 | . . . . . 2 1 . Misdirections 2 | . . . . . 2 . . Overload Shots . | . . . . . . . . Overflow Damage 2211 | . 98 85 580 1140 178 130 . Projectiles . | . . . . . . . . Explosions 21 | . . . . . 21 . . Melee 2190 | . 98 85 580 1140 157 130 . Knockbacks 21 | . . 1 8 9 1 2 . Impact 20 | . . 1 7 9 1 2 . Kinetic . | . . . . . . . . Secondary 1 | . . . 1 . . . . Self-Inflicted Damage . | . . . . . . . . Shots . | . . . . . . . . Rammed . | . . . . . . . . Targets Rammed . | . . . . . . . . Kicked . | . . . . . . . . Crushed . | . . . . . . . . Highest Temperature 342 | 114 342 . 172 248 274 217 . Average Temperature 88 | 47 88 . 74 93 110 102 . Received Heat Transfer 2214 | . 234 . 615 783 510 . 72 Effects 1 | . 1 . . . . . . Energy Bleed 1 | . 1 . . . . . . Siege Activations . | . . . . . . . . Martial Activations . | . . . . . . . . Shielding Activations . | . . . . . . . . Robots Disrupted . | . . . . . . . . Combat Hostiles . | . . . . . . . . Robots Corrupted 28 | . . 1 12 15 . . . Combat Hostiles 20 | . . . 10 10 . . . Parts Fried 39 | . 1 2 14 21 1 . . Impact Corruptions 87 | . 2 2 30 49 2 2 . Robots Melted . | . . . . . . . . Combat Hostiles . | . . . . . . . . Parts Melted 8 | 2 6 . . . . . . Heat Transferred 2675 | 310 2365 . . . . . . Parts Sabotaged . | . . . . . . . . Parts Stolen 1 | . . . . . . 1 . Parts Stripped . | . . . . . . . . Power Chain Reactions . | . . . . . . . . Alert | -11 -10 -10 -9 -8 -7 -7 -7 ------- Run | Yrd Mat Min Mat Mat Fac Low Low Maximum Alert Level 2 | . 1 . 1 1 2 . . Low Security (%) 76 | 100 98 100 73 75 58 . . Level 1 20 | . 1 . 26 24 30 . . Level 2 3 | . . . . . 11 . . Level 3 . | . . . . . . . . Level 4 . | . . . . . . . . Level 5 . | . . . . . . . . High Security . | . . . . . . . . Max Security . | . . . . . . . . Peak Influence 433 | 10 202 5 294 312 433 . . Initial 128 | . . . . 120 128 . . Average 127 | 1 81 . 104 172 176 . . Influence Increases 3351 | 15 609 5 874 858 905 35 50 Destroy 0b10 Robot/C 1860 | . 320 . 480 580 440 20 20 Destroy 0b10 Robot/NC 235 | 15 40 5 40 60 70 5 . Destroy Leader 526 | . 66 . 166 148 136 10 . Allied During Kill 2 | . . . 2 . . . . Successful Hack 85 | . 33 . 27 13 12 . . Select Force Hacks 60 | . 60 . . . . . . Disable Machine 105 | . . . 30 15 60 . . Destroy Structure 58 | . . . 9 12 37 . . Lose Combat Pursuer 420 | . 90 . 120 30 150 . 30 Influence Decreases 3331 | 15 609 5 589 860 759 464 30 Entered New Map 479 | . . . . 165 155 159 . Time Decay 2209 | 15 413 5 462 565 444 295 10 Lost Part 462 | . 60 . 92 120 160 10 20 Lost Ally 45 | . . . 35 10 . . . Purge Threat 136 | . 136 . . . . . . Squads Dispatched 23 | . 4 . 3 4 11 . 1 Investigation 7 | . 3 . . 1 3 . . Extermination 5 | . . . . . 5 . . Reinforcement 10 | . 1 . 3 3 3 . . Assault 1 | . . . . . . . 1 Garrison . | . . . . . . . . Intercept . | . . . . . . . . Searches Triggered . | . . . . . . . . Construction Impeded . | . . . . . . . . Haulers Reinforced 1 | . . . . . 1 . . Active Scanning Responses . | . . . . . . . . Cargo Convoy Interrupts . | . . . . . . . . Stealth | -11 -10 -10 -9 -8 -7 -7 -7 --------- Run | Yrd Mat Min Mat Mat Fac Low Low Distress Signals 16 | . 3 . 6 6 1 . . Communications Jammed . | . . . . . . . . Distress Signals . | . . . . . . . . Times Spotted 175 | . 31 . 46 45 42 2 9 Peak Tracking Total 8 | . 5 . 6 8 6 1 8 Tactical Retreats 19 | . 4 . 5 2 7 . 1 Traps | -11 -10 -10 -9 -8 -7 -7 -7 ------- Run | Yrd Mat Min Mat Mat Fac Low Low Traps Triggered 6 | . 4 . . . 2 . . Indirectly . | . . . . . . . . Trap Hack Attempts . | . . . . . . . . Triggered . | . . . . . . . . Disarmed . | . . . . . . . . Reprogrammed . | . . . . . . . . Reused . | . . . . . . . . Traps Extracted . | . . . . . . . . Installed . | . . . . . . . . Triggered . | . . . . . . . . Machines | -11 -10 -10 -9 -8 -7 -7 -7 ---------- Run | Yrd Mat Min Mat Mat Fac Low Low Machines Disabled 8 | . 1 . 2 1 4 . . Max in Single Turn 2 | . 1 . 1 1 2 . . Garrison Access 2 | . . . . 1 1 . . Machines Repaired . | . . . . . . . . Machines Dismantled . | . . . . . . . . Machines Sabotaged . | . . . . . . . . Overloaded Fab Kills . | . . . . . . . . Hacking | -11 -10 -10 -9 -8 -7 -7 -7 --------- Run | Yrd Mat Min Mat Mat Fac Low Low Machines Accessed 37 | . 9 . 9 10 9 . . Terminals 24 | . 7 . 7 6 4 . . Fabricators . | . . . . . . . . Repair Stations 2 | . . . . . 2 . . Recycling Units 8 | . 2 . 2 2 2 . . Scanalyzers 1 | . . . . 1 . . . Garrison Access 2 | . . . . 1 1 . . Total Hacks 116 | . 37 . 27 31 21 . . Successful 73 | . 22 . 16 25 10 . . Failed 42 | . 14 . 11 6 11 . . Catastrophic 4 | . 1 . 1 . 2 . . Database Lockouts 1 | . 1 . . . . . . Manual 67 | . 24 . 21 16 6 . . Terminals 94 | . 32 . 24 26 12 . . Fabricators . | . . . . . . . . Repair Stations 3 | . . . . . 3 . . Recycling Units 15 | . 5 . 3 2 5 . . Scanalyzers 2 | . . . . 2 . . . Garrison Access 2 | . . . . 1 1 . . Terminal Hacks 22 | . 8 . 2 8 4 . . Part Schematic 1 | . 1 . . . . . . Prototype ID Bank 4 | . 1 . 1 2 . . . Level Access Points 1 | . . . . . 1 . . Branch Access Points 1 | . . . . . 1 . . Terminal Index 3 | . 1 . 1 1 . . . Unreport Threat 2 | . 2 . . . . . . Maintenance Status 1 | . . . . 1 . . . Surveillance Status 1 | . . . . 1 . . . Recall Reinforcements 1 | . 1 . . . . . . Hauler Manifests 3 | . 1 . . 1 1 . . Registered Components 3 | . 1 . . 1 1 . . Zone Layout 1 | . . . . 1 . . . Fabricator Hacks . | . . . . . . . . Repair Station Hacks . | . . . . . . . . Recycling Unit Hacks 7 | . 1 . 2 2 2 . . Retrieve Components 7 | . 1 . 2 2 2 . . Scanalyzer 2 | . . . . 2 . . . Insert Component 1 | . . . . 1 . . . Analyze 1 | . . . . 1 . . . Garrison Access Hacks 2 | . . . . 1 1 . . Seal Access 2 | . . . . 1 1 . . Unauthorized Hacks 40 | . 13 . 12 12 3 . . Terminals 37 | . 11 . 11 12 3 . . Assimilate 1 | . . . 1 . . . . Botnet 17 | . 5 . 4 6 2 . . Operators 2 | . 1 . 1 . . . . Skim 17 | . 5 . 5 6 1 . . Fabricators . | . . . . . . . . Repair Stations . | . . . . . . . . Recycling Units 3 | . 2 . 1 . . . . Recyclers 1 | . . . 1 . . . . Tunnel 2 | . 2 . . . . . . Scanalyzers . | . . . . . . . . Garrison Access . | . . . . . . . . Data Cores Recovered 1 | . . . 1 . . . . Used . | . . . . . . . . Hacking Detections 29 | . 8 . 7 7 7 . . Full Trace Events 4 | . 1 . . 1 2 . . Feedback Events 1 | . . . . . 1 . . Corruption 1 | . . . . . 1 . . Feedback Blocked . | . . . . . . . . Robot Schematics Acquired . | . . . . . . . . Robots Built . | . . . . . . . . Authchips . | . . . . . . . . Time . | . . . . . . . . Total Robot Build Rating . | . . . . . . . . Part Schematics Acquired 2 | . 1 . . 1 . . . Parts Built . | . . . . . . . . Authchips . | . . . . . . . . Time . | . . . . . . . . Total Part Build Rating . | . . . . . . . . Parts Repaired . | . . . . . . . . Time . | . . . . . . . . Parts Recycled . | . . . . . . . . Recycled Matter . | . . . . . . . . Retrieved Matter . | . . . . . . . . Retrieved Components 37 | . . . 11 6 20 . . Parts Scanalyzed 1 | . . . . 1 . . . Part Schematics Acquired 1 | . . . . 1 . . . Parts Damaged . | . . . . . . . . Bothacking | -11 -10 -10 -9 -8 -7 -7 -7 ------------ Run | Yrd Mat Min Mat Mat Fac Low Low Used RIF Installer . | . . . . . . . . Robots Hacked . | . . . . . . . . Non-combat . | . . . . . . . . Combat . | . . . . . . . . Robot Hacks Applied . | . . . . . . . . Relay Couplers Released . | . . . . . . . . Fabnet Peak Effective % . | . . . . . . . . Robots Rewired . | . . . . . . . . Allies Hacked . | . . . . . . . . Hacks Repelled . | . . . . . . . . Allies | -11 -10 -10 -9 -8 -7 -7 -7 -------- Run | Yrd Mat Min Mat Mat Fac Low Low Total Allies 3 | . . 2 1 . . . . Largest Group 2 | . . 2 2 1 . . . Highest-Rated Group 42 | . . 42 42 10 . . . Highest-Rated Ally 31 | . . 31 31 10 . . . Total Orders . | . . . . . . . . Ally Attacks 4 | . . . 4 . . . . Total Damage 62 | . . . 62 . . . . Kills 1 | . . . 1 . . . . Allies Corrupted . | . . . . . . . . Allies Melted . | . . . . . . . . Intel | -11 -10 -10 -9 -8 -7 -7 -7 ------- Run | Yrd Mat Min Mat Mat Fac Low Low Active Infowar (turns) 1644 | 27 437 . 93 323 51 656 57 Sensors 1087 | . . . . 323 51 656 57 Seismic 557 | 27 437 . 93 . . . . Robot Analysis Total . | . . . . . . . . Derelict Logs Recovered . | . . . . . . . . Drone Launches . | . . . . . . . . Drone Recoveries . | . . . . . . . . Exploration | -11 -10 -10 -9 -8 -7 -7 -7 ------------- Run | Yrd Mat Min Mat Mat Fac Low Low Turns Passed 8599 | 129 1419 424 2040 1684 2151 671 81 Spaces Moved 4536 | 68 694 137 852 739 1415 557 74 Core 56 | 11 1 . . . . . 44 Treads . | . . . . . . . . Legs 3734 | 57 693 137 852 739 1253 . 3 Wheels 745 | . . . . . 162 557 26 Hover . | . . . . . . . . Flight 1 | . . . . . . . 1 Fastest Speed 35 | 50 120 190 120 90 95 95 35 Average Speed 148 | 132 161 190 189 166 124 108 84 Slowest Speed 500 | 190 500 190 190 270 200 125 200 Overloaded Moves . | . . . . . . . . Propulsion Burnouts . | . . . . . . . . Robots Hopped . | . . . . . . . . Potential Cave-ins 2 | . . . . . 2 . . Cave-ins Triggered 1 | . . . . . 1 . . Exploration Rate (%) 50 | 6 97 25 83 66 41 77 10 Regions Visited 7 Branch Regions 3 Pre-discovered Areas 3 | . 2 . 1 . . . . Known Exits Taken 4 | . . . 1 1 1 1 . Unknown Exits Taken 3 | 1 1 1 . . . . . Scrap Searched 2 | . . . . . . 2 . Spaces Dug 42 | . . . 8 14 14 6 . Terrain Destroyed 74 | . . . 8 14 46 6 . Melee 42 | . . . 8 14 14 6 . Projectile . | . . . . . . . . AOE 32 | . . . . . 32 . . Terrain Rammed . | . . . . . . . . Walls Destroyed . | . . . . . . . . Machines Disabled . | . . . . . . . . Actions | -11 -10 -10 -9 -8 -7 -7 -7 --------- Run | Yrd Mat Min Mat Mat Fac Low Low Total 5668 | 87 851 299 1119 992 1640 594 86 Wait 438 | . 32 159 114 70 53 10 . Move 4529 | 67 693 136 851 738 1414 556 74 Hop . | . . . . . . . . Pick Up 67 | 4 17 . 11 16 16 3 . Fast Attach 47 | 7 11 1 7 2 16 2 1 Attach 40 | . 6 . 10 12 9 2 1 Detach 10 | . 1 . 1 1 3 2 2 Swap 50 | 1 11 . 7 16 15 . . Drop 54 | . 10 1 12 12 16 . 3 Fire 97 | 8 69 . . . 18 2 . Melee 336 | . 1 2 106 125 80 17 5 Ram . | . . . . . . . . Kick . | . . . . . . . . Crush . | . . . . . . . . Escape Stasis . | . . . . . . . . Rewire . | . . . . . . . . Trap . | . . . . . . . . Miscellaneous . | . . . . . . . . Route ------- -11/Scrapyard -10/Materials (discovered 4 exits: *Mat x3 / [*Min]) -10/Mines -9/Materials (discovered 4 exits: *Mat x3 / Min) -8/Materials (discovered 3 exits: *Fac x2 / Sto) -7/Factory (discovered 6 exits: *Fac x4 / *Low x2) -7/Lower Caves -7/Lower Caves History --------- Turn | Location | Event 16 | -11/Scrapyard | Discovered new exit (range 14) 130 | -11/Scrapyard | Entered Materials 246 | -10/Materials | Discovered new exit (range 13) 323 | -10/Materials | Build established: Mutant 514 | -10/Materials | Discovered new exit (range 16) 781 | -10/Materials | Discovered new exit (range 5) 1170 | -10/Materials | Discovered new exit (range 11) 1181 | -10/Materials | Central database locked down 1549 | -10/Materials | Entered Mines 1609 | -10/Mines | A weapon hastily lodged in a ceiling crevice suddenly fell to the ground 1729 | -10/Mines | Discovered new exit (range 5) 1973 | -10/Mines | Entered Materials 1973 | -9/Materials | Accompanied by 2 allies 1973 | -9/Materials | Evolved 2 slots: Propulsion x1, Utility x1 1978 | -9/Materials | Led the pair of lost Derelicts to an unsafe place 2709 | -9/Materials | Build established: Scavenger-Mutant 3109 | -9/Materials | Discovered new exit (range 11) 3408 | -9/Materials | Core integrity fell below 50% 3409 | -9/Materials | Identified exit to Materials 3482 | -9/Materials | Identified exit to Mines 3545 | -9/Materials | Loaded intel: 2 recycling unit locations 3647 | -9/Materials | Learned 4 Recycling zone layouts 3685 | -9/Materials | Loaded intel: 26 trap records 3806 | -9/Materials | Learned Materials trap positions 4013 | -9/Materials | Entered another Materials area 4013 | -8/Materials | Accompanied by 1 ally 4013 | -8/Materials | Evolved 2 slots: Utility x1, Weapon x1 4014 | -8/Materials | Identified exit to Storage 4015 | -8/Materials | Loaded intel: 16 trap records 4254 | -8/Materials | Lost 4 parts (3n1u) 4470 | -8/Materials | Build established: Mutant 4518 | -8/Materials | Discovered new exit (range 8) 5144 | -8/Materials | Lost 3 parts (1p1n1w) 5434 | -8/Materials | Lost 4 parts (1p2n1u) 5505 | -8/Materials | Discovered new exit (range 16) 5695 | -8/Materials | Identified exit to Factory 5697 | -8/Materials | Entered Factory 5697 | -7/Factory | Evolved 2 slots: Propulsion x1, Utility x1 5718 | -7/Factory | Build established: Scavenger-Mutant 5794 | -7/Factory | Discovered new exit (range 13) 5811 | -7/Factory | Identified exit to Factory 6448 | -7/Factory | Build established: Hacker-Gladiator 6528 | -7/Factory | Found Powered Armor 6628 | -7/Factory | Identified exit to Lower Caves 6768 | -7/Factory | Crushed by falling debris 6812 | -7/Factory | Lost 3 parts (3n) 6987 | -7/Factory | Core integrity fell below 50% 7256 | -7/Factory | Build established: Scavenger-Gladiator 7542 | -7/Factory | System corruption reached 10% 7628 | -7/Factory | Build established: Gladiator 7661 | -7/Factory | Lost 6 parts (2p3n1w) 7848 | -7/Factory | Entered Lower Caves 8421 | -7/Lower Caves | Discovered new exit (range 15) 8518 | -7/Lower Caves | Identified exit to Lower Caves 8519 | -7/Lower Caves | Entered another Lower Caves area 8560 | -7/Lower Caves | Attracted the attention of an 0b10 outpost 8565 | -7/Lower Caves | Core integrity fell below 20% 8600 | -7/Lower Caves | Destroyed by P-60 Hacker with Shock Rifle Last Messages --------------- 08552_ Wheel destroyed. 08558_ Mace follow-up attack on S-27 Virus. 08560_ Y-64 Sentinel: "DETECTED UNIDENTIFIED DERELICT." 08564_ System corrupted: Energy discharge (-75). 08564_ Y-64 Sentinel: "REQUESTING BACKUP." 08565_ Imp. Titanium Leg destroyed. 08566_ S-27 Virus destroyed. 08568_ Dropped Lrg. Storage Unit. 08568_ Penetrated by Slug. 08570_ VTOL Module fries itself beyond repair. 08570_ Dropped Power Maul. 08571_ Dropped Adv. ECM Suite. 08571_ Penetrated by Slug. 08571_ Imp. Deuterium Engine destroyed. 08572_ Acquired Unknown Flight Unit. 08572_ Identified Cesium-ion Thruster. 08574_ Cesium-ion Thruster destroyed. 08574_ Penetrated by Slug. 08593_ Melee Analysis Suite destroyed. Map ----- +----------------------------------------------------+ | ??????????????????????????????????????????????? | | ??#######?????????????????????????????????????? | | ??#"""""#?????????????????????????????????????? | | ??#"""""#?????????????????????????????????????? | | ??#"""""##????????????????????????????????????? | | ???# # ##???????????????????????????????????? | | #### # #???????????????????????????????????? | | #???????????????????????????????????? | | ##############??????????????????????? | | #### ## #??###?????????????????? | | ???##### ### #?????????????????? | | ???????# ####### ## #?????????????????? | | #####??# ##??#### ## ##????????????????? | | ##?# ##???# # ##???????????????? | | #?## #????# #???????????????? | | # #??## ####?# #???????????????? | | # #??# # ### #???????????????? | | ##??# #???????????????? | | #???##### #???????????????? | | ??????#### ### #???????????????? | | ????????######?## #???????????????? | | ???????????????##p #???????????????? | | ###???????????????# ###???????????????? | | #????????????????## ##????????????????? | | ### ????????????????# ##???????????????? | | ??? ???????????????#@ #???????????????? | | ??? ?????????????# #???????????????? | | #????? ?????????????? #???????????????? | | #???????????????????? ##???????????????? | | ????????????????????# ###????????????????? | | ????????????????????# #??????????????????? | | ????????????????????## #??????????????????? | | ?????????????????????# #??????????????????? | | ?????????????????????# ### ??????????????????? | | ?????????????????????# ??? ??????????????????? | | ????????????????????? ??? ??????????????????? | | ????????????????????? ??? ??????????????????? | | ???????????????????? ## ??? ??????????????????? | | ????????????????????#?##??? ?????????????????? | | ???????????????????????????? ?????????????????? | | ??????????????????????????????????????????????? | | ??????????????????????????????????????????????? | | ??????????????????????????????????????????????? | | ??????????????????????????????????????????????? | | ??????????????????????????????????????????????? | | ??????????????????????????????????????????????? | | ??????????????????????????????????????????????? | | ??????????????????????????????????????????????? | | ??????????????????????????????????????????????? | | ??????????????????????????????????????????????? | +----------------------------------------------------+ Best States ------------- Heat Dissipation 35 Energy Generation 16 Energy Capacity 290 Matter Stores 300 Matter Capacity 300 Sight Range 16 Robot Scan Range 15 Terrain Scan Density 10 Armor Coverage 225 Resistance: KI 30 Power Shielding 33 Propulsion Shielding 66 Evasion (%) 55 Targeting Accuracy 5 Melee Accuracy 11 Core Analysis 6 Offensive Hacking 20 Defensive Hacking 10 Item Schematics ----------------- Lrg. Storage Unit | -10/Materials | Hacked Adv. Terrain Scan Processor | -8/Materials | Scanalyzed Robot Schematics ------------------ None Fabricated ------------ Nothing Repaired ---------- Nothing Alien Tech Used ----------------- None Achievements -------------- None Challenges ------------ None Game ------ Seed TargetVortexRecalibrator Manual? 0 Play Time 00:53:46 Cumulative 133.8 hours Start 2025.08.22 @ 22:14:26 End 2025.08.22 @ 23:25:28 Sessions 1 Manual Loads 0 Difficulty Rogue Special Mode None Game No. 59 Rogue 59 Adventurer 0 Explorer 0 Win Type - Total 3 Types 1/0/2/0/0/0/0/0/0/0 Lore% 75 Gallery% 63 Achievement% 78 Wizard Run 0 Options --------- Layout 2 ASCII 0 Keyboard 1 Movement Vi Keybinds 0 Fullscreen 1 Font 28/SwanstonBold Map View 50x52 Zoom Use 0% Tactical HUD 1 Map Filters NONE Filters NONE Steam 1 RUN: 7c71902a-d15c-4454-917a-910ea2796487